bitfinex-derivatives/quotes_ETHF0:USTF0_20250104
["timestamp","ask_amount","ask_price","bid_price","bid_amount"]
[1736011833410,0.27591,3624.9,3624.6,0.27593]
[1736011833619,2.9050159,3625.0,3624.5,0.4399]
[1736011833804,2.16778856,3624.9,3624.5,0.4399]
[1736011834005,0.4357,3624.8,3624.6,0.27593]
[1736011834906,0.4357,3624.8,3624.5,0.4399]
[1736011835109,0.4357,3624.8,3624.7,0.27592]
[1736011835793,0.4357,3624.8,3624.6,0.27592]
[1736011836020,0.4357,3624.8,3624.7,0.27592]
[1736011836977,3.1809159,3625.0,3624.8,0.27591]
[1736011837180,0.8253,3625.0,3624.8,0.27591]
[1736011837381,0.27591,3624.9,3624.7,0.27592]
[1736011837879,1.1012,3625.0,3624.8,0.27591]
[1736011838078,0.27591,3624.9,3624.7,0.27592]
[1736011838278,0.27591,3624.8,3624.6,0.27593]
[1736011838980,2.99308856,3625.0,3624.3,0.4416]
[1736011839180,0.27591,3624.9,3624.7,0.27592]
[1736011842377,0.8253,3625.0,3624.3,0.4416]
[1736011842583,0.27592,3624.8,3624.6,0.27592]
[1736011843982,2.99308856,3625.0,3624.3,0.4416]
[1736011844186,0.27592,3624.8,3624.3,0.4416]
[1736011844379,0.27592,3624.8,3624.6,0.27592]
[1736011845287,0.27592,3624.8,3624.7,0.4481]
[1736011851504,0.27594,3624.4,3624.3,0.4416]
[1736011851715,0.27596,3624.2,3624.1,0.4417]
[1736011851900,3.48376,3624.2,3624.1,0.4417]
[1736011852095,3.48376,3624.2,3623.8,6.47720274]
[1736011852096,0.27598,3623.9,3623.8,6.47720274]
[1736011853100,0.276,3623.8,3623.5,1.12941]
[1736011853306,0.714,3623.8,3623.5,1.12941]
[1736011853700,0.714,3623.8,3623.6,0.276]
[1736011854296,0.71399,3623.8,3623.6,0.276]
[1736011855288,0.276,3623.7,3623.6,0.276]
[1736011855478,0.276,3623.7,3623.5,0.8534]
[1736011855683,0.276,3623.7,3623.6,0.27601]
[1736011856588,0.71399,3623.8,3623.6,0.27601]
[1736011857391,0.276,3623.7,3623.6,0.27601]
[1736011858689,0.276,3623.7,3623.6,0.276]
[1736011860595,0.438,3623.8,3623.5,0.8534]
[1736011860992,0.276,3623.7,3623.6,0.276]
[1736011862506,0.71399,3623.8,3623.7,0.276]
[1736011863098,2.16778856,3624.0,3623.6,3.2078]
[1736011863307,2.16778856,3624.0,3623.9,0.27598]
[1736011863512,2.44375856,3624.0,3623.9,0.27598]
[1736011863700,0.27597,3624.0,3623.9,0.27598]
[1736011864312,0.27597,3624.0,3623.6,3.2078]
[1736011864610,0.27597,3624.0,3623.8,0.27599]
[1736011864812,1.089,3624.2,3623.8,0.27599]
[1736011865013,0.27598,3624.0,3623.8,0.27599]
[1736011865211,0.27597,3624.1,3624.0,0.27597]
[1736011865412,1.36496,3624.2,3624.0,0.27597]
[1736011865710,0.27597,3624.1,3624.0,0.27597]
[1736011865912,0.27598,3624.0,3623.6,3.2078]
[1736011866210,0.27597,3624.1,3623.9,0.27598]
[1736011867006,3.25678856,3624.2,3623.6,3.2078]
[1736011867714,0.27598,3624.0,3623.8,0.27598]
[1736011868712,0.27599,3623.9,3623.7,0.27599]
[1736011868909,3.25678856,3624.2,3623.6,3.2078]
[1736011869115,0.276,3623.7,3623.5,0.68771]
[1736011869711,0.27604,3623.2,3623.0,0.27604]
[1736011869910,0.27604,3623.2,3622.8,3.2078]
[1736011870114,3.48384,3623.2,3622.7,0.851]
[1736011871010,0.27606,3622.9,3622.7,1.12707]
[1736011871916,0.27607,3622.8,3622.7,0.4391]
[1736011872112,0.27608,3622.6,3622.5,6.47720274]
[1736011872415,0.4453,3622.7,3622.3,3.4839]
[1736011872616,0.27609,3622.5,3622.3,3.4839]
[1736011872809,0.4453,3622.7,3622.3,3.2078]
[1736011873008,0.27608,3622.6,3622.3,3.4839]
[1736011873213,0.4453,3622.7,3622.3,3.4839]
[1736011873514,0.27609,3622.5,3622.3,3.4839]
[1736011873717,0.4453,3622.7,3622.3,3.2078]
[1736011873909,0.2761,3622.4,3622.3,3.2078]
[1736011874114,3.2078,3622.4,3622.2,0.4391]
[1736011874418,0.27613,3622.1,3621.9,0.27613]
[1736011874914,0.27613,3622.0,3621.8,7.19724274]
[1736011875119,0.27613,3622.1,3621.8,7.19724274]
[1736011875317,0.27613,3622.0,3621.8,7.19724274]
[1736011875513,0.27613,3621.9,3621.8,6.92110274]
[1736011875816,0.27613,3621.9,3621.8,0.4439]
[1736011876217,0.27613,3622.0,3621.8,0.4439]
[1736011876412,2.5092159,3622.3,3622.0,0.27612]
[1736011876413,0.27612,3622.2,3622.0,0.27612]
[1736011877014,0.4295,3622.3,3621.8,0.4439]
[1736011877226,0.27613,3622.1,3621.9,0.27613]
[1736011877921,0.27613,3622.0,3621.8,0.72004]
[1736011878117,2.5092159,3622.3,3621.7,0.4356]
[1736011878324,0.27614,3621.8,3621.7,0.4356]
[1736011878521,0.27614,3621.9,3621.7,0.71175]
[1736011878818,2.5092159,3622.3,3621.7,0.4356]
[1736011879120,0.27613,3622.0,3621.8,0.27614]
[1736011879921,1.089,3621.9,3621.8,0.27614]
[1736011880127,1.089,3621.9,3621.7,0.4356]
[1736011880421,1.089,3621.9,3621.8,0.27614]
[1736011882418,0.4295,3622.3,3621.8,0.27614]
[1736011882618,2.16778856,3622.8,3622.0,5.2875159]
[1736011882817,2.16778856,3622.8,3622.7,0.27607]
[1736011883224,1.089,3623.0,3622.9,0.27606]
[1736011883813,1.36505,3623.0,3622.9,0.27606]
[1736011884119,1.089,3623.0,3622.9,0.27606]
[1736011884824,1.089,3623.5,3622.8,3.2078]
[1736011885019,5.37558856,3623.7,3623.6,0.27601]
[1736011885326,3.25678856,3623.7,3623.6,0.27601]
[1736011885925,1.089,3623.7,3623.6,0.27601]
[1736011886124,1.5254,3624.0,3623.3,3.2078]
[1736011886320,2.16778856,3624.2,3623.8,2.0797159]
[1736011886528,2.16778856,3624.2,3624.1,5.5634859]
[1736011886826,3.25469868,3624.3,3624.2,0.27596]
[1736011887022,1.61412868,3624.3,3624.2,0.27596]
[1736011887222,6.49267345,3624.8,3624.1,5.2875159]
[1736011887430,2.15769658,3625.0,3624.9,0.27591]
[1736011888528,4.2968,3625.4,3625.2,0.27588]
[1736011888828,4.2968,3625.4,3625.3,0.27588]
[1736011889217,4.2968,3625.4,3625.2,0.27588]
[1736011889423,4.2968,3625.4,3624.6,3.2078]
[1736011889625,4.2968,3625.4,3624.9,0.2759]
[1736011889626,2.0797159,3625.2,3624.9,0.2759]
[1736011890324,2.0797159,3625.2,3625.1,0.27589]
[1736011890728,0.4439,3625.5,3625.0,2.0797159]
[1736011891032,1.089,3625.7,3625.6,0.27585]
[1736011891232,3.2078,3625.8,3625.6,0.27585]
[1736011891421,1.089,3625.7,3625.6,0.27585]
[1736011891619,3.2078,3625.8,3625.7,0.27585]
[1736011891823,7.247,3626.0,3625.9,0.27583]
[1736011891824,1.089,3626.0,3625.9,0.27583]
[1736011893531,1.089,3626.0,3625.0,3.2078]
[1736011893730,2.0797159,3625.3,3624.6,3.2078]
[1736011893928,2.0797159,3625.3,3625.2,0.27588]
[1736011894130,2.0797159,3625.6,3625.3,0.27588]
[1736011896631,2.0797159,3625.6,3625.4,0.27587]
[1736011897129,2.0797159,3625.6,3625.2,0.27588]
[1736011897130,2.3555759,3625.6,3625.2,0.27588]
[1736011897938,2.0797159,3625.6,3625.2,0.27588]
[1736011898131,2.0797159,3625.6,3624.6,3.2078]
[1736011898638,2.0797159,3625.6,3625.3,0.27587]
[1736011899041,2.5265159,3625.6,3625.3,0.27587]
[1736011899637,0.27586,3625.5,3625.2,0.27588]
[1736011899835,2.8023659,3625.6,3625.3,0.27587]
[1736011900335,2.5265159,3625.6,3624.6,3.2078]
[1736011900640,2.5265159,3625.6,3625.5,0.27586]
[1736011901037,2.5265159,3625.6,3625.0,3.2078]
[1736011901337,2.3556059,3625.1,3624.7,0.27592]
[1736011901541,1.088,3625.0,3624.7,0.27592]
[1736011901939,1.088,3625.0,3624.4,3.2078]
[1736011901940,1.088,3625.0,3624.9,0.27591]
[1736011904843,1.088,3625.1,3624.5,0.96578]
[1736011905038,1.088,3625.1,3625.0,0.2759]
[1736011905942,1.088,3625.9,3625.0,5.0]
[1736011906141,3.2078,3626.2,3626.1,0.27581]
[1736011907145,0.27579,3626.5,3625.5,0.4208]
[1736011907445,1.088,3626.4,3626.2,0.2758]
[1736011907844,1.3638,3626.4,3626.1,0.27581]
[1736011908057,0.4338,3626.3,3625.4,5.9771859]
[1736011908243,0.7096,3626.3,3626.0,0.27581]
[1736011908747,0.7096,3626.3,3625.4,5.2875159]
[1736011908748,2.5135159,3626.3,3625.4,5.2875159]
[1736011908935,0.27581,3626.2,3625.9,0.27583]
[1736011909255,0.27581,3626.2,3625.4,3.2078]
[1736011909256,1.088,3626.2,3625.4,3.2078]
[1736011909544,1.088,3626.2,3625.0,3.6286]
[1736011909545,2.0797159,3626.0,3625.0,3.6286]
[1736011909847,1.77754,3626.2,3624.6,3.2078]
[1736011909848,2.0797159,3625.4,3624.6,3.2078]
[1736011910040,0.27588,3625.2,3625.0,0.27589]
[1736011910346,0.27588,3625.2,3624.9,0.4487]
[1736011910547,0.27588,3625.2,3625.0,0.2759]
[1736011911047,1.77758,3625.3,3625.0,0.2759]
[1736011911252,1.77758,3625.3,3624.6,3.2078]
[1736011911253,1.5017,3625.3,3624.6,3.2078]
[1736011911448,1.5017,3625.3,3625.1,0.27589]
[1736011912049,1.5017,3625.3,3625.2,0.27588]
[1736011912537,1.088,3625.3,3625.2,0.27588]
[1736011913641,3.2078,3625.5,3624.8,2.0797159]
[1736011913840,3.2078,3625.5,3625.4,0.27587]
[1736011914646,2.0797159,3626.0,3625.1,0.8799]
[1736011914647,1.088,3626.0,3625.1,2.9596159]
[1736011914848,4.2958,3626.1,3626.0,0.27582]
[1736011915145,0.27583,3626.0,3625.7,0.27584]
[1736011915349,0.27583,3626.0,3625.2,0.27588]
[1736011915644,4.2958,3626.1,3625.8,0.27584]
[1736011915844,0.27582,3626.0,3625.8,0.27584]
[1736011916042,4.57162,3626.1,3625.8,0.27584]
[1736011916241,4.2958,3626.1,3625.9,0.27583]
[1736011916548,4.2958,3626.1,3625.4,3.2078]
[1736011916745,4.57162,3626.1,3625.8,0.27583]
[1736011917252,0.27583,3625.9,3625.6,0.27585]
[1736011917440,0.27583,3625.9,3625.7,0.27584]
[1736011918649,0.27583,3625.9,3625.4,3.2078]
[1736011918650,0.27584,3625.8,3625.5,0.27586]
[1736011918844,0.27583,3625.9,3625.6,0.27585]
[1736011919148,0.27583,3625.9,3625.7,0.27584]
[1736011920258,0.27583,3625.9,3625.6,0.27585]
[1736011920953,0.27583,3625.9,3625.4,3.2078]
[1736011921158,0.27583,3625.9,3625.7,0.27584]
[1736011921658,4.2958,3626.1,3625.4,3.2078]
[1736011921659,4.57162,3626.1,3625.4,3.2078]
[1736011921851,0.27582,3626.0,3625.8,0.27583]
[1736011922954,4.2958,3626.1,3625.8,0.27583]
[1736011923154,0.27583,3626.0,3625.4,3.2078]
[1736011923562,0.27582,3626.0,3625.6,0.27585]
[1736011923760,0.27583,3625.9,3625.6,0.27585]
[1736011923961,0.27584,3625.8,3625.6,0.27585]
[1736011924662,1.088,3626.1,3625.6,0.27585]
[1736011925162,0.27584,3625.8,3625.6,0.27585]
[1736011926158,3.2078,3625.8,3625.2,0.27588]
[1736011926365,2.0797159,3625.6,3625.1,0.8799]
[1736011926670,0.27588,3625.3,3625.1,0.72209]
[1736011929468,2.0797159,3625.3,3624.6,3.6523]
[1736011929669,2.0797159,3625.3,3624.6,4.0876]
[1736011929966,0.27591,3624.9,3624.8,0.27591]
[1736011930171,2.0797159,3625.3,3624.6,8.37039034]
[1736011930369,0.27592,3624.7,3624.6,8.64632034]
[1736011931373,0.27592,3624.7,3624.6,4.36353]
[1736011931971,2.0797159,3625.3,3624.6,4.0876]
[1736011932376,0.27588,3625.2,3625.1,0.27589]
[1736011933274,4.2958,3625.4,3624.7,4.28279034]
[1736011933474,1.088,3625.4,3625.3,0.27588]
[1736011934076,4.3094659,3625.7,3625.5,0.27586]
[1736011934683,2.9456159,3625.7,3625.1,0.4213]
[1736011934875,2.9456159,3625.7,3625.6,0.27585]
[1736011934876,0.8659,3625.7,3625.6,0.27585]
[1736011936576,0.8659,3625.7,3625.4,4.28279034]
[1736011936783,2.9456159,3625.7,3625.4,4.28279034]
[1736011937475,2.9456159,3625.7,3625.3,0.27587]
[1736011937679,0.27587,3625.4,3625.2,0.27588]
[1736011938582,2.9456159,3625.7,3625.1,4.70409034]
[1736011938880,0.27586,3625.5,3625.3,0.27587]
[1736011939282,5.38347908,3625.9,3625.1,0.4213]
[1736011939583,0.27584,3625.8,3625.6,0.27585]
[1736011939775,0.27585,3625.7,3625.5,0.27586]
[1736011940878,1.5025,3625.9,3625.5,0.27586]
[1736011941182,1.5025,3625.9,3625.8,0.27584]
[1736011941183,1.088,3625.9,3625.8,0.27584]
[1736011942287,1.36383,3625.9,3625.7,0.27584]
[1736011942485,1.088,3625.9,3625.7,0.27585]
[1736011942690,1.088,3625.9,3625.8,0.27584]
[1736011946984,1.088,3625.9,3625.6,0.8705]
[1736011946985,7.50327908,3626.2,3626.1,0.27581]
[1736011947594,4.29547908,3626.2,3626.1,0.27581]
[1736011948093,3.2502569,3626.3,3626.2,0.27581]
[1736011948894,3.5260569,3626.3,3626.1,0.27581]
[1736011949080,3.2502569,3626.3,3625.8,0.4102]
[1736011949286,0.27581,3626.2,3625.8,0.4102]
[1736011949493,0.27581,3626.2,3626.0,0.27582]
[1736011950789,2.0797159,3626.3,3625.8,0.4102]
[1736011950988,0.27583,3625.9,3625.7,7.76643034]
[1736011951596,0.27584,3625.8,3625.7,7.49059034]
[1736011951795,2.0797159,3626.3,3625.7,7.49059034]
[1736011951992,2.0797159,3626.3,3625.7,3.2078]
[1736011951993,3.2502569,3626.1,3625.7,3.2078]
[1736011952493,0.27583,3625.9,3625.7,3.2078]
[1736011952893,0.27584,3625.8,3625.7,3.2078]
[1736011953889,0.27584,3625.8,3625.6,1.14635]
[1736011954698,0.27585,3625.7,3625.6,0.8705]
[1736011955003,0.27586,3625.5,3625.4,4.28279034]
[1736011956499,0.27586,3625.5,3625.2,0.69028]
[1736011956500,0.27587,3625.4,3625.2,0.69028]
[1736011957199,3.5261269,3625.5,3625.2,0.69028]
[1736011957400,0.27587,3625.4,3625.2,0.69028]
[1736011958799,3.5261269,3625.5,3625.3,0.27588]
[1736011959003,0.27587,3625.4,3625.2,0.69028]
[1736011962103,3.2502569,3625.5,3625.2,0.4144]
[1736011962296,3.2502569,3625.5,3625.3,0.27588]
[1736011962297,0.27587,3625.4,3625.3,0.27588]
[1736011962796,0.27587,3625.4,3625.2,0.69028]
[1736011962991,3.2502569,3625.5,3625.2,0.4144]
[1736011963396,3.2502569,3625.5,3625.4,0.27587]
[1736011963910,0.27585,3625.6,3625.3,0.27588]
[1736011964206,0.27585,3625.6,3625.5,0.27586]
[1736011966304,3.6729569,3625.9,3625.8,0.27584]
[1736011966506,3.9487869,3625.9,3625.8,0.27584]
[1736011966703,1.9137,3626.0,3625.7,0.27585]
[1736011966704,1.77003,3626.0,3625.7,0.27585]
[1736011966900,1.77003,3626.0,3625.6,0.8519]
[1736011966901,1.77003,3626.0,3625.8,0.27583]
[1736011967297,1.77003,3626.0,3625.9,0.27583]
[1736011967512,1.77003,3626.0,3625.6,0.8519]
[1736011967701,1.77003,3626.0,3625.8,0.27583]
[1736011967902,0.27583,3625.9,3625.8,0.27583]
[1736011968101,0.27583,3625.9,3625.7,0.27584]
[1736011969306,0.27583,3625.9,3625.8,0.27584]
[1736011971603,1.77003,3626.0,3625.9,0.27583]
[1736011972002,0.27583,3625.9,3625.8,0.27583]
[1736011972408,1.4942,3626.0,3625.9,0.27583]
[1736011972409,1.77003,3626.0,3625.9,0.27583]
[1736011972711,0.4062,3626.0,3625.9,0.27583]
[1736011972907,3.25144332,3626.1,3626.0,0.27582]
[1736011973209,4.61525332,3626.2,3626.1,0.27581]
[1736011973404,4.33944332,3626.2,3626.1,0.27581]
[1736011973606,3.25144332,3626.2,3626.1,0.27581]
[1736011974307,7.82304332,3626.3,3625.7,4.28279034]
[1736011974505,7.82304332,3626.3,3626.2,0.27581]
[1736011974707,7.82304332,3626.3,3626.1,0.27581]
[1736011976103,7.82304332,3626.3,3626.2,0.27581]
[1736011976104,7.54724332,3626.3,3626.2,0.27581]
[1736011977013,6.45924332,3626.3,3626.2,0.27581]
[1736011977308,3.25144332,3626.3,3626.2,0.27581]
[1736011977512,3.25144332,3626.4,3626.0,2.0797159]
[1736011977813,3.25144332,3626.4,3626.3,3.4836]
[1736011979110,3.52720332,3626.9,3626.3,7.49059034]
[1736011979310,3.52720332,3626.9,3626.8,0.27576]
[1736011979702,3.52720332,3626.9,3626.4,1.2834]
[1736011979902,3.52720332,3626.9,3626.7,0.27576]
[1736011980109,3.25144332,3626.9,3626.3,4.28279034]
[1736011980309,0.2758,3626.3,3626.2,4.28279034]
[1736011980518,3.4836,3626.3,3626.2,4.28279034]
[1736011981610,0.27583,3625.9,3625.7,4.55863034]
[1736011981814,0.27582,3626.1,3625.9,0.27583]
[1736011982115,0.27581,3626.2,3625.8,0.27584]
[1736011982315,0.27581,3626.2,3625.7,4.28279034]
[1736011982529,6.45924332,3626.3,3625.7,4.28279034]
[1736011982713,6.45924332,3626.3,3626.1,0.27581]
[1736011983017,3.52724332,3626.3,3626.1,0.27581]
[1736011983516,0.27581,3626.2,3625.9,0.27582]
[1736011983811,0.27581,3626.2,3626.0,0.27582]
[1736011984211,0.27581,3626.2,3625.9,0.27582]
[1736011984419,0.27581,3626.2,3626.0,0.27582]
[1736011985311,0.27581,3626.2,3625.7,4.28279034]
[1736011985312,3.2078,3626.3,3625.7,4.28279034]
[1736011985514,0.27583,3626.0,3625.8,0.27583]
[1736011986316,2.0797159,3626.2,3625.7,4.28279034]
[1736011986620,0.27583,3625.9,3625.7,4.55863034]
[1736011986918,0.4409,3625.8,3625.7,4.55863034]
[1736011987113,0.8572,3625.8,3625.7,4.55863034]
[1736011987618,0.8572,3625.8,3625.7,0.27584]
[1736011988319,1.13304,3625.8,3625.7,0.27584]
[1736011991221,0.8572,3625.8,3625.7,0.27584]
[1736011991423,3.25144332,3626.1,3626.0,0.27582]
[1736011992127,1.1177,3626.4,3626.3,0.2758]
[1736011993019,0.8419,3626.4,3626.3,0.2758]
[1736011993518,1.11769,3626.4,3626.3,0.2758]
[1736011994219,3.25144332,3626.5,3626.0,1.93316]
[1736011994423,3.25144332,3626.5,3626.4,0.27579]
[1736011996027,0.4193,3626.8,3626.3,5.2875159]
[1736011996226,0.4193,3626.8,3626.7,0.27577]
[1736011997327,3.25144332,3627.0,3626.9,0.27575]
[1736011999446,3.68824332,3627.3,3627.2,0.27573]
[1736012000542,3.68824332,3627.3,3627.1,0.27573]
[1736012000746,0.4368,3627.3,3627.2,0.27573]
[1736012001337,4.07514332,3627.5,3627.4,0.27572]
[1736012001941,0.8237,3627.5,3627.4,0.27572]
[1736012002939,0.4181,3627.5,3627.4,0.27572]
[1736012006442,0.4181,3627.5,3627.3,0.27572]
[1736012007945,0.4181,3627.5,3627.4,0.27572]
[1736012010649,3.2078,3627.8,3627.0,0.68935]
[1736012010849,3.2078,3627.8,3627.7,0.27569]
[1736012011050,3.25144332,3627.9,3627.3,0.6893]
[1736012011246,0.4122,3628.0,3627.9,0.27568]
[1736012011247,3.25144332,3628.0,3627.9,0.27568]
[1736012012346,0.55504332,3628.0,3627.9,3.48348]
[1736012012647,4.29547908,3628.2,3628.1,0.27566]
[1736012012853,18.13655504,3629.0,3628.1,0.27566]
[1736012012854,3.24090902,3628.9,3628.8,0.27561]
[1736012014151,0.27557,3629.4,3629.2,0.27557]
[1736012014752,0.27556,3629.4,3629.2,0.27557]
[1736012015347,4.0526,3629.5,3628.7,2.0797159]
[1736012015553,4.0526,3629.5,3629.4,0.27556]
[1736012016048,0.8448,3629.5,3629.4,0.27556]
[1736012016751,4.2948,3630.0,3629.3,5.2875159]
[1736012017061,0.4422,3629.9,3629.7,0.27554]
[1736012017356,0.4422,3629.9,3629.3,5.2875159]
[1736012017947,0.4422,3629.9,3629.3,3.2078]
[1736012018153,0.27554,3629.7,3629.3,3.48337]
[1736012018356,0.27554,3629.7,3629.0,2.0797159]
[1736012018357,0.27557,3629.4,3629.0,0.27559]
[1736012018661,0.27556,3629.5,3629.1,0.27559]
[1736012018954,3.2078,3629.6,3628.7,5.2875159]
[1736012019152,0.27557,3629.4,3629.1,0.27558]
[1736012019351,0.4432,3629.3,3629.1,0.27558]
[1736012019957,0.4432,3629.3,3628.7,5.2875159]
[1736012020147,0.4446,3629.2,3629.0,0.27559]
[1736012020352,0.4446,3629.2,3629.1,0.27559]
[1736012020752,0.4446,3629.2,3629.0,0.27559]
[1736012021053,0.4446,3629.2,3629.1,0.27559]
[1736012024470,0.4446,3629.2,3628.8,3.2078]
[1736012024960,0.72018,3629.2,3629.0,0.27559]
[1736012025366,2.0797159,3629.1,3628.0,3.2078]
[1736012025659,5.2875159,3628.8,3628.0,3.2078]
[1736012025864,2.0797159,3628.5,3627.6,3.2078]
[1736012026064,2.0797159,3628.2,3627.5,4.28279034]
[1736012026366,3.2078,3627.8,3627.5,4.28279034]
[1736012026662,0.2757,3627.7,3627.5,4.55849034]
[1736012026962,0.2757,3627.6,3627.5,4.55849034]
[1736012027358,3.1667159,3628.2,3627.5,2.0797159]
[1736012027359,1.087,3628.2,3627.5,2.0797159]
[1736012027560,1.087,3628.2,3627.9,0.27567]
[1736012027759,1.36266,3628.2,3628.0,0.27567]
[1736012028461,0.27566,3628.1,3628.0,0.27567]
[1736012028660,1.087,3628.2,3628.0,0.27567]
[1736012028862,1.36266,3628.2,3628.0,0.27567]
[1736012029162,0.408,3628.4,3628.3,0.27565]
[1736012030768,3.627,3628.6,3628.5,0.27563]
[1736012031167,3.90262,3628.6,3628.5,0.27563]
[1736012031771,3.627,3628.6,3628.5,0.27563]
[1736012032574,3.627,3628.6,3628.4,0.27564]
[1736012034270,3.627,3628.6,3627.9,3.2078]
[1736012034471,3.627,3628.6,3628.5,0.27563]
[1736012034873,0.4192,3628.6,3628.5,0.27563]
[1736012037981,0.4204,3628.9,3628.8,0.27561]
[1736012040676,0.8425,3628.9,3628.8,0.27561]
[1736012046777,0.27558,3629.2,3629.1,0.27558]
[1736012046979,0.8561,3629.2,3628.6,0.68907]
[1736012047184,0.27559,3629.1,3628.6,0.68907]
[1736012047384,0.27559,3629.1,3629.0,0.27559]
[1736012048285,0.8561,3629.2,3628.6,0.68907]
[1736012048585,0.27559,3629.1,3629.0,0.27559]
[1736012049182,1.13168,3629.2,3629.1,0.27559]
[1736012049786,1.13168,3629.2,3628.5,1.11619]
[1736012049988,1.13168,3629.2,3629.1,0.27559]
[1736012050286,0.8561,3629.2,3629.1,0.27559]
[1736012050875,1.13168,3629.2,3629.1,0.27559]
[1736012051081,0.8561,3629.2,3629.0,0.27559]
[1736012051282,0.8561,3629.2,3628.5,0.68909]
[1736012051481,1.13168,3629.2,3629.1,0.27559]
[1736012052287,0.8561,3629.2,3629.1,0.27559]
[1736012054486,0.4242,3629.4,3628.9,2.0797159]
[1736012054687,0.4242,3629.4,3629.3,0.27557]
[1736012055480,0.8582,3629.7,3629.2,5.2875159]
[1736012055686,0.8582,3629.7,3629.6,0.27555]
[1736012056209,4.29547908,3630.0,3629.9,0.27553]
[1736012056386,5.40367345,3630.2,3630.1,0.27551]
[1736012056387,0.4271,3630.2,3630.1,0.27551]
[1736012056990,0.70261,3630.2,3629.5,2.7686159]
[1736012057184,0.4271,3630.2,3630.1,0.27551]
[1736012061290,5.36984434,3630.3,3630.2,0.2755]
[1736012061890,5.36984434,3630.3,3630.2,0.6951]
[1736012062593,3.2078,3630.3,3630.2,0.6951]
[1736012062884,3.2078,3630.3,3630.2,0.2755]
[1736012063889,0.4126,3630.4,3629.8,6.36250624]
[1736012064082,0.4126,3630.4,3630.3,0.2755]
[1736012065090,0.68809,3630.4,3630.3,0.2755]
[1736012065291,0.4126,3630.4,3630.3,0.2755]
[1736012065694,0.68809,3630.4,3630.3,0.2755]
[1736012065892,0.4126,3630.4,3630.3,0.2755]
[1736012066898,0.4126,3630.4,3629.7,3.89664]
[1736012067092,0.4126,3630.4,3630.3,0.2755]
[1736012067596,0.4415,3630.6,3630.5,0.27548]
[1736012070889,0.421,3630.7,3630.2,0.4383]
[1736012071196,0.421,3630.7,3630.6,0.27547]
[1736012074392,0.421,3630.7,3630.4,2.0797159]
[1736012074393,0.4095,3631.0,3630.5,3.2078]
[1736012074595,0.4095,3631.0,3630.9,0.27545]
[1736012076300,0.4311,3631.2,3631.1,0.27543]
[1736012076593,0.8158,3631.4,3630.9,3.2078]
[1736012076799,0.8158,3631.4,3631.3,0.27542]
[1736012078601,1.09121,3631.4,3631.2,0.27542]
[1736012079792,0.8158,3631.4,3631.3,0.27542]
[1736012080599,1.09121,3631.4,3631.2,0.27542]
[1736012080902,0.8158,3631.4,3631.3,0.27542]
[1736012082303,1.09121,3631.4,3631.3,0.27542]
[1736012082901,1.09121,3631.4,3631.2,0.27542]
[1736012085002,0.8158,3631.4,3631.3,0.27542]
[1736012086508,0.8158,3631.4,3630.9,5.2875159]
[1736012086509,0.4043,3631.6,3631.5,0.2754]
[1736012086706,0.8214,3631.8,3631.7,0.27539]
[1736012087910,0.27539,3631.7,3631.2,2.0797159]
[1736012088111,1.09679,3631.8,3631.6,0.2754]
[1736012088313,1.09678,3631.8,3631.3,0.27542]
[1736012088610,0.8214,3631.8,3631.2,2.0797159]
[1736012088909,0.8214,3631.8,3631.4,0.27541]
[1736012088910,0.27541,3631.5,3631.4,0.27541]
[1736012089305,0.8214,3631.8,3630.9,5.2875159]
[1736012089505,0.2754,3631.7,3631.5,0.2754]
[1736012089703,0.8214,3631.8,3631.5,0.2754]
[1736012090012,0.2754,3631.6,3631.5,0.2754]
[1736012090811,0.27539,3631.7,3631.0,0.68861]
[1736012091013,0.27539,3631.7,3631.5,0.2754]
[1736012092212,0.27539,3631.7,3631.6,0.2754]
[1736012092719,0.27539,3631.7,3631.0,0.68861]
[1736012093413,0.27539,3631.7,3631.6,0.2754]
[1736012095012,0.27539,3631.7,3631.0,1.09911]
[1736012095013,0.8214,3631.8,3631.7,0.27539]
[1736012095214,1.09678,3631.8,3631.7,0.27539]
[1736012096016,0.8214,3631.8,3631.7,0.27539]
[1736012096617,0.8214,3631.8,3631.2,2.1975159]
[1736012096815,1.09679,3631.8,3631.6,0.27539]
[1736012097914,0.27539,3631.7,3631.6,0.27539]
[1736012100414,0.8214,3631.8,3631.6,0.27539]
[1736012100619,1.09679,3631.8,3631.6,0.27539]
[1736012100814,1.09679,3631.8,3631.7,0.27539]
[1736012101227,0.27539,3631.8,3631.7,0.27539]
[1736012101427,0.27539,3631.8,3631.2,2.0797159]
[1736012101428,0.27538,3631.8,3631.5,2.0797159]
[1736012101615,0.27538,3631.8,3631.7,0.27539]
[1736012101819,3.48318,3631.9,3631.7,0.27539]
[1736012102422,3.48318,3631.9,3631.5,2.0797159]
[1736012102622,3.48318,3631.9,3631.8,0.27538]
[1736012103629,3.2078,3631.9,3631.2,2.0797159]
[1736012103833,0.27543,3631.1,3631.0,4.28279034]
[1736012104028,0.27543,3631.2,3631.0,4.55823034]
[1736012104320,0.4281,3631.1,3631.0,4.55823034]
[1736012104927,0.4281,3631.1,3631.0,0.27544]
[1736012106016,0.4281,3631.1,3630.9,3.2078]
[1736012106223,0.27546,3630.9,3630.5,4.28279034]
[1736012106425,0.4486,3630.8,3630.7,0.27546]
[1736012106624,0.8606,3630.8,3630.7,0.27546]
[1736012107123,0.27547,3630.6,3630.5,4.28279034]
[1736012107326,0.8606,3630.8,3630.5,4.28279034]
[1736012107528,0.27547,3630.6,3630.4,0.27549]
[1736012107727,0.8606,3630.8,3630.7,0.27547]
[1736012108126,1.086,3630.9,3630.8,0.27546]